Cogmind - Beta 15 @@@ ROGUE MODE // 2025.10.21 @ 05:41:06 // Winter2022/Polymind Player: War__Prophet Result: Destroyed by P-60 Hacker with Shock Rifle Performance ------------- Evolutions (3) 1500 Regions Visited (4) 800 Robots Destroyed (13) 65 Value Destroyed (446) 446 Prototype IDs (0) 0 Alien Tech Used (0) 0 Bonus (2735) 2735 TOTAL SCORE: 5476 Bonus ------- Polymind Skill 2265 Pacifist 470 Cogmind --------- Core Integrity 0/700 Matter 0/0 Energy 98/100 System Corruption 3% Temperature Cool (0) Movement Core (50) Location -7/Factory Parts ------- > --- POWER (1) -------- (None) > --- PROPULSION (2) --- (None) > --- UTILITY (3) ------ (None) > --- WEAPON (2) ------- (None) > --- INVENTORY (0) ---- (None) Peak State ------------ > --- POWER ------------ Improved Deuterium Engine > --- PROPULSION ------- Light Treads Light Treads > --- UTILITY ---------- Improved Heat Sink Improved Heat Sink Improved Light Armor Plating > --- WEAPON ----------- Gatling Laser Flak Gun > --- INVENTORY -------- (None) [Rating: 23] Favorites ----------- Power Improved Deuterium Engine Engine Improved Deuterium Engine Power Core Light Nuclear Core Propulsion Light Treads Treads Light Treads Leg Aluminum Leg Wheel Wheel Hover Unit Hover Unit Flight Unit Flight Unit Utility Improved Heat Sink Device Improved Heat Sink Storage Small Matter Pod Processor Terrain Scan Processor Hackware Hacking Suite Protection Improved Light Armor Plating Weapon Gatling Laser Energy Gun Gatling Laser Ballistic Gun Flak Gun Special Weapon Welding Torch Impact Weapon Hammer Special Melee Weapon Datajack Build | -11 -10 -9 -8 -7 ------- Run | Yrd Mat Mat Mat Fac Slots Evolved . | . . . . . Power . | . . . . . Propulsion . | . . . . . Utility . | . . . . . Weapon . | . . . . . Parts Attached . | . . . . . Power . | . . . . . Engine . | . . . . . Core . | . . . . . Reactor . | . . . . . Propulsion . | . . . . . Treads . | . . . . . Leg . | . . . . . Wheel . | . . . . . Hover . | . . . . . Flight . | . . . . . Utility . | . . . . . Device . | . . . . . Storage . | . . . . . Processor . | . . . . . Hackware . | . . . . . Protection . | . . . . . Artifact . | . . . . . Weapon . | . . . . . Energy Gun . | . . . . . Energy Cannon . | . . . . . Ballistic Gun . | . . . . . Ballistic Cannon . | . . . . . Launcher . | . . . . . Special Weapon . | . . . . . Impact Weapon . | . . . . . Slashing Weapon . | . . . . . Piercing Weapon . | . . . . . Special Melee Weapon . | . . . . . Unidentified Prototypes . | . . . . . Parts Lost 13 | . . 1 10 2 Power 3 | . . 1 2 . Propulsion 5 | . . . 5 . Utility 2 | . . . 1 1 Weapon 3 | . . . 2 1 Highest Loss Streak 4 | . . 1 4 1 To Critical Strikes . | . . . . . Average Backups . | . . . . . Power . | . . . . . Propulsion . | . . . . . Utility . | . . . . . Weapon . | . . . . . Tool/Special . | . . . . . Unused Backups . | . . . . . Power . | . . . . . Propulsion . | . . . . . Utility . | . . . . . Weapon . | . . . . . Tool/Special . | . . . . . Average Slot Usage (%) 91 | . 50 84 75 96 Engine 10 | . 10 16 7 11 Core 1 | . . . 3 . Treads 17 | . . . 3 22 Leg 3 | . . . 11 1 Wheel 3 | . . 24 11 . Hover 1 | . 20 15 . . Flight 1 | . . . 10 . Device 19 | . . . 5 24 Storage 1 | . . 12 6 . Protection 8 | . . . . 10 Energy Gun 9 | . . . 5 11 Ballistic Gun 9 | . . . 6 10 Peak Build Rating 23 | . 7 7 10 23 Average Rating 17 | . 3 5 4 21 On Entrance 4 | . . 7 3 10 Naked Turns 95 | . 34 . 2 59 Heaviest Build 23 | . 4 4 15 23 Greatest Support 40 | 3 12 20 40 40 Greatest Overweight (x) 3 | . . . 3 . Average Overweight (x) . | . . . . . Largest Inventory Capacity 1 | . 1 1 1 1 Average Capacity . | . . 1 . . Most Carried . | . . . . . Average Carried . | . . . . . Final Capacity 1 | . 1 1 1 . Final Carried . | . . . . . Class Distribution -------------------- 68% | Sentry 8% | Worker 7% | Grunt 4% | Swarmer 3% | Cogmind 3% | Operator Dominant Class ---------------- Operator | -10/Materials Worker | -9/Materials Worker | -8/Materials Sentry | -7/Factory Resources | -11 -10 -9 -8 -7 ----------- Run | Yrd Mat Mat Mat Fac Matter Collected . | . . . . . Remotely . | . . . . . Salvage Created 238 | . . . 238 . Parts 19 | . . . 19 . Haulers Intercepted . | . . . . . Recyclers Shooed . | . . . . . Parts Field Recycled . | . . . . . Retrieved Matter . | . . . . . Parts Self-Destructed . | . . . . . Prevented . | . . . . . Kills | -11 -10 -9 -8 -7 ------- Run | Yrd Mat Mat Mat Fac Combat Hostiles Destroyed 13 | . . . 13 . Melee 1 | . . . 1 . Guns 10 | . . . 10 . Classes Destroyed 4 | . . . 4 . Swarmer 4 | . . . 4 . Grunt 5 | . . . 5 . Brawler 1 | . . . 1 . Sentry 3 | . . . 3 . Best Kill Streak 8 | . . . 8 . Combat Bots Only 8 | . . . 8 . Max Kills in Single Turn 1 | . . . 1 . Gunslinging . | . . . . . Exploded . | . . . . . Melee 1 | . . . 1 . Uniques/NPCs Destroyed . | . . . . . Combat | -11 -10 -9 -8 -7 -------- Run | Yrd Mat Mat Mat Fac Hostile Shots Fired 334 | . . 20 184 130 Missed 109 | . . 4 52 53 Hits 225 | . . 16 132 77 Melee 1 | . . . 1 . Projectile 224 | . . 16 131 77 Critical Strikes 2 | . . . 2 . Damage Taken 2744 | . . 226 1723 795 Core 1311 | . . 90 514 707 Absorbed by Shields . | . . . . . Core Remaining (%) 70 | 100 100 77 6 . Volleys Fired 86 | . . . 85 1 Largest 1 | . . . 1 1 Hottest 65 | . . . 65 65 Shots Fired 86 | . . . 85 1 Gun 86 | . . . 85 1 Cannon . | . . . . . Launcher . | . . . . . Special . | . . . . . Kinetic 55 | . . . 55 . Thermal 31 | . . . 30 1 Explosive . | . . . . . Electromagnetic . | . . . . . Robot Hit Streak 14 | . . . 14 . Robot Miss Streak 7 | . . . 7 . Penetration Max . | . . . . . Secondary Targets . | . . . . . Shots Hit Robots 72 | . . . 72 . Core Hits 30 | . . . 28 2 Critical Kills . | . . . . . Critical Parts Destroyed 2 | . . . 2 . Critical Strikes 2 | . . . 2 . Smash 2 | . . . 2 . Melee Attacks 16 | . . . 16 . Impact 16 | . . . 16 . Slashing . | . . . . . Piercing . | . . . . . Sneak Attacks . | . . . . . Combat Hostiles . | . . . . . Follow-up Attacks . | . . . . . Damage Inflicted 1010 | . . . 946 64 Guns 648 | . . . 648 . Cannons . | . . . . . Explosions . | . . . . . Melee 294 | . . . 294 . Ramming 68 | . . . 4 64 Kinetic 290 | . . . 290 . Thermal 358 | . . . 358 . Explosive . | . . . . . Electromagnetic . | . . . . . Impact 294 | . . . 294 . Slashing . | . . . . . Piercing . | . . . . . Highest Corruption 3 | . . . . 3 Average Corruption 2 | . . . . 2 Corruption Purged . | . . . . . Corruption Blocked . | . . . . . Overload Shots . | . . . . . Overflow Damage 52 | . . . 52 . Projectiles . | . . . . . Explosions . | . . . . . Melee 52 | . . . 52 . Knockbacks . | . . . . . Impact . | . . . . . Kinetic . | . . . . . Secondary . | . . . . . Self-Inflicted Damage 27 | . . . . 27 Shots . | . . . . . Rammed 25 | . . . . 25 Targets Rammed 28 | . . . 3 25 Kicked 3 | . . . 3 . Crushed . | . . . . . Highest Temperature 145 | . . 10 145 7 Average Temperature 44 | . . 4 48 4 Received Heat Transfer 957 | . . 93 666 198 Siege Activations . | . . . . . Martial Activations . | . . . . . Shielding Activations . | . . . . . Robots Disrupted . | . . . . . Combat Hostiles . | . . . . . Robots Corrupted 2 | . . . 2 . Combat Hostiles 2 | . . . 2 . Parts Fried 1 | . . . 1 . Impact Corruptions 2 | . . . 2 . Robots Melted . | . . . . . Combat Hostiles . | . . . . . Parts Melted 3 | . . . 3 . Heat Transferred 814 | . . . 814 . Parts Sabotaged . | . . . . . Parts Stolen . | . . . . . Parts Stripped . | . . . . . Power Chain Reactions . | . . . . . Alert | -11 -10 -9 -8 -7 ------- Run | Yrd Mat Mat Mat Fac Maximum Alert Level . | . . . . . Low Security (%) 100 | 100 100 100 100 100 Level 1 . | . . . . . Level 2 . | . . . . . Level 3 . | . . . . . Level 4 . | . . . . . Level 5 . | . . . . . High Security . | . . . . . Max Security . | . . . . . Peak Influence 180 | . . 15 180 62 Initial 62 | . . . . 62 Average 14 | . . 2 76 2 Influence Increases 405 | . . 15 375 15 Destroy 0b10 Robot/C 260 | . . . 260 . Destroy Leader 40 | . . . 40 . Partial Spotted 30 | . . 15 15 . Lose Combat Pursuer 75 | . . . 60 15 Influence Decreases 405 | . . 15 237 153 Entered New Map 76 | . . . . 76 Time Decay 221 | . . 14 147 60 Lost Part 107 | . . . 90 17 Miscellaneous 1 | . . 1 . . Squads Dispatched 10 | . 1 . 3 6 Investigation 3 | . . . 3 . Extermination 4 | . . . . 4 Reinforcement 3 | . 1 . . 2 Assault . | . . . . . Garrison . | . . . . . Intercept . | . . . . . Searches Triggered . | . . . . . Construction Impeded . | . . . . . Haulers Reinforced . | . . . . . Active Scanning Responses . | . . . . . Cargo Convoy Interrupts . | . . . . . Stealth | -11 -10 -9 -8 -7 --------- Run | Yrd Mat Mat Mat Fac Distress Signals 5 | . . . 5 . Communications Jammed . | . . . . . Distress Signals . | . . . . . Times Spotted 64 | . 1 6 49 8 Peak Tracking Total 8 | . 1 6 8 3 Tactical Retreats 4 | . . . 3 1 Traps | -11 -10 -9 -8 -7 ------- Run | Yrd Mat Mat Mat Fac Traps Triggered 2 | . . . 2 . Indirectly . | . . . . . Trap Hack Attempts . | . . . . . Triggered . | . . . . . Disarmed . | . . . . . Reprogrammed . | . . . . . Reused . | . . . . . Traps Extracted . | . . . . . Installed . | . . . . . Triggered . | . . . . . Machines | -11 -10 -9 -8 -7 ---------- Run | Yrd Mat Mat Mat Fac Machines Disabled . | . . . . . Max in Single Turn . | . . . . . Machines Repaired . | . . . . . Machines Dismantled . | . . . . . Machines Sabotaged . | . . . . . Overloaded Fab Kills . | . . . . . Hacking | -11 -10 -9 -8 -7 --------- Run | Yrd Mat Mat Mat Fac Machines Accessed 3 | . 1 1 1 . Terminals 2 | . 1 . 1 . Fabricators . | . . . . . Repair Stations . | . . . . . Recycling Units 1 | . . 1 . . Scanalyzers . | . . . . . Garrison Access . | . . . . . Total Hacks 5 | . 1 1 3 . Successful 4 | . 1 1 2 . Failed 1 | . . . 1 . Catastrophic . | . . . . . Database Lockouts . | . . . . . Manual . | . . . . . Terminals 4 | . 1 . 3 . Fabricators . | . . . . . Repair Stations . | . . . . . Recycling Units 1 | . . 1 . . Scanalyzers . | . . . . . Garrison Access . | . . . . . Terminal Hacks 3 | . 1 . 2 . Record 2 | . . . 2 . Locate Traps 1 | . 1 . . . Fabricator Hacks . | . . . . . Repair Station Hacks . | . . . . . Recycling Unit Hacks 1 | . . 1 . . Process 1 | . . 1 . . Scanalyzer . | . . . . . Garrison Access Hacks . | . . . . . Unauthorized Hacks . | . . . . . Terminals . | . . . . . Fabricators . | . . . . . Repair Stations . | . . . . . Recycling Units . | . . . . . Scanalyzers . | . . . . . Garrison Access . | . . . . . Data Cores Recovered . | . . . . . Used . | . . . . . Hacking Detections 1 | . . . 1 . Full Trace Events 1 | . . . 1 . Feedback Events . | . . . . . Feedback Blocked . | . . . . . Robot Schematics Acquired . | . . . . . Robots Built . | . . . . . Authchips . | . . . . . Time . | . . . . . Total Robot Build Rating . | . . . . . Part Schematics Acquired . | . . . . . Parts Built . | . . . . . Authchips . | . . . . . Time . | . . . . . Total Part Build Rating . | . . . . . Parts Repaired . | . . . . . Time . | . . . . . Parts Recycled . | . . . . . Recycled Matter 1 | . . 1 . . Retrieved Matter . | . . . . . Retrieved Components . | . . . . . Parts Scanalyzed . | . . . . . Part Schematics Acquired . | . . . . . Parts Damaged . | . . . . . Bothacking | -11 -10 -9 -8 -7 ------------ Run | Yrd Mat Mat Mat Fac Used RIF Installer . | . . . . . Robots Hacked 7 | . 1 . 4 2 Non-combat 2 | . 1 . . 1 Combat 5 | . . . 4 1 Robot Hacks Applied 12 | . 1 . 8 3 map_walls 1 | . . . . 1 find_terminals 1 | . 1 . . . find_shortcuts 5 | . . . 4 1 find_garrison 5 | . . . 4 1 Relay Couplers Released . | . . . . . Fabnet Peak Effective % . | . . . . . Robots Rewired . | . . . . . Allies Hacked . | . . . . . Hacks Repelled . | . . . . . Allies | -11 -10 -9 -8 -7 -------- Run | Yrd Mat Mat Mat Fac Total Allies . | . . . . . Largest Group . | . . . . . Highest-Rated Group . | . . . . . Highest-Rated Ally . | . . . . . Total Orders . | . . . . . Ally Attacks . | . . . . . Total Damage . | . . . . . Kills . | . . . . . Allies Corrupted . | . . . . . Allies Melted . | . . . . . Intel | -11 -10 -9 -8 -7 ------- Run | Yrd Mat Mat Mat Fac Active Infowar (turns) 49 | . . . . 49 Terrain 48 | . . . . 48 Structural 49 | . . . . 49 Robot Analysis Total 7 | . 1 1 3 2 Derelict Logs Recovered . | . . . . . Drone Launches . | . . . . . Drone Recoveries . | . . . . . Exploration | -11 -10 -9 -8 -7 ------------- Run | Yrd Mat Mat Mat Fac Turns Passed 2706 | 9 73 117 467 2040 Spaces Moved 853 | 18 138 169 332 196 Core 159 | 18 66 . 15 60 Treads 19 | . . . 8 11 Legs 115 | . . . 51 64 Wheels 334 | . . 94 179 61 Hover 147 | . 72 75 . . Flight 79 | . . . 79 . Fastest Speed 37 | 50 50 56 37 50 Average Speed 73 | 50 53 69 77 88 Slowest Speed 200 | 50 56 80 200 160 Overloaded Moves . | . . . . . Propulsion Burnouts . | . . . . . Robots Hopped . | . . . . . Potential Cave-ins . | . . . . . Cave-ins Triggered . | . . . . . Exploration Rate (%) 17 | 2 27 16 36 7 Regions Visited 4 Branch Regions . Pre-discovered Areas . | . . . . . Known Exits Taken . | . . . . . Unknown Exits Taken 4 | 1 1 1 1 . Scrap Searched . | . . . . . Spaces Dug . | . . . . . Terrain Destroyed . | . . . . . Melee . | . . . . . Projectile . | . . . . . AOE . | . . . . . Terrain Rammed . | . . . . . Walls Destroyed . | . . . . . Machines Disabled . | . . . . . Actions | -11 -10 -9 -8 -7 --------- Run | Yrd Mat Mat Mat Fac Total 2822 | 17 137 168 438 2062 Wait 1843 | . . . 3 1840 Move 850 | 17 137 168 332 196 Hop . | . . . . . Pick Up . | . . . . . Fast Attach . | . . . . . Attach . | . . . . . Detach . | . . . . . Swap . | . . . . . Drop . | . . . . . Fire 86 | . . . 85 1 Melee 16 | . . . 16 . Ram 25 | . . . . 25 Kick 2 | . . . 2 . Crush . | . . . . . Escape Stasis . | . . . . . Rewire . | . . . . . Trap . | . . . . . Miscellaneous . | . . . . . Route ------- -11/Scrapyard -10/Materials -9/Materials -8/Materials -7/Factory History --------- Turn | Location | Event 3 | -11/Scrapyard | Discovered new exit (range 15) 10 | -11/Scrapyard | Entered Materials 66 | -10/Materials | Discovered new exit (range 12) 83 | -10/Materials | Entered another Materials area 196 | -9/Materials | Discovered new exit (range 5) 200 | -9/Materials | Entered another Materials area 420 | -8/Materials | Lost 3 parts (2n1u) 421 | -8/Materials | Core integrity fell below 50% 513 | -8/Materials | Destroyed 8 combat bots 615 | -8/Materials | Core integrity fell below 20% 645 | -8/Materials | Lost 4 parts (1p2n1w) 648 | -8/Materials | Discovered new exit (range 16) 667 | -8/Materials | Entered Factory 2693 | -7/Factory | Core integrity fell below 50% 2704 | -7/Factory | Core integrity fell below 20% 2707 | -7/Factory | Destroyed by P-60 Hacker with Shock Rifle Last Messages --------------- 02023_ ALERT: Potential suspicious activity detected, Programmers report to Factory Zone 6P. 02659_ Released control of Y-54 Guardian. 02660_ ALERT: Potential suspicious activity detected, Programmers report to Factory Zone 3S. 02660_ Slammed into O-24 Administrator. 02661_ Y-54 Guardian reactivates. 02662_ Slammed into O-24 Administrator. 02663_ Slammed into Y-54 Guardian. 02681_ Slammed into P-60 Hacker. 02692_ Destabilizing: Core damaged (-21). 02693_ Slammed into P-60 Hacker. 02694_ P-60 Hacker resets U-05 Engineer, system corruption cleaned. 02694_ Slammed into P-60 Hacker. 02706_ P-60 Hacker resets U-05 Engineer, system corruption cleaned. 02706_ P-60 Hacker destroyed. 02706_ Acquired 32 Protomatter. 02707_ K-01 Serf collects debris. Map ----- +----------------------------------------------------+ | ?????????????????????????????????????????????????? | | ?????????????????????????????????????????????????? | | ?????????????????????????????????????????????????? | | ?????????????????????????????????????????????????? | | ?????????????????????????????????????????????????? | | ?????????????????????????????????????????????????? | | ?????????????????????????????????????????????????? | | ?????????????????????????????????????????????????? | | ?????????????????????????????????????????????????? | | ?????????????????????????????????????????????????? | | ???????????????????? "???????????????????????????? | | ????????????????? ?? ???????????????????????????? | | ??????????????" ? ???????????????????????????? | | ?????????????? ? ???????????????????????????? | | ??????????????? ##/???#######?????????????????? | | ???????????????# ???# #?????????????????? | | ???????????????# ???# #?????????????????? | | ???????????????# #### +?????????????????? | | ???????????????# #?????????????????? | | ???????????????# #?????????????????? | | ???????????????#u #?????????????????? | | ???????????????# #?????????????????? | | ?????????####### #?????????????????? | | ????????? a #?????????????????? | | ????????? k % #?????????????????? | | ??????????????#######%%%%@% #?????????????????? | | ??????????????# ## [=|%######?????????????????? | | ???? ?????????# ##![ %%#??????????????????????? | | ??????????????# !*!## *!! #??????????????????????? | | ??????????????# !! # Y #??????????????????????? | | ??#???????????# *! # #??????????????????????? | | ???????????????? # #??????????????????????? | | ???????????"?#####+# % up########????????????????? | | ???????????"?+ #??????????????? | | ## ##### u #??????????????? | | +#######+######### ####+######### #??????????????? | | ##### # ?????????????????????????? | | # ?????????????????????????? | | # ?????????????????????????? | | # ?????????????????????????? | | ##### # ?????????????????????????? | | ############ ??????????????????????????? | | ####???????????????????????????????????? | | # ?????????????????????????????????????? | | # ??? ?#??????????????????????????????? | | # ?????????????????????????????????????? | | # ??? ?????????????????????????????????? | | # ? ??????????????????????????????????? | | # ????? ###????????????????????????????? | | """ """ # ????? ##?????????????????????????????? | +----------------------------------------------------+ Best States ------------- Heat Dissipation 43 Energy Generation 21 Energy Capacity 240 Matter Stores 94 Matter Capacity 100 Sight Range 16 Terrain Scan Range 14 Terrain Scan Density 85 Armor Coverage 150 Resistance: EX 50 Resistance: I 25 Resistance: S 25 Evasion (%) 62 Recoil Reduction 2 Offensive Hacking 10 Item Schematics ----------------- None Robot Schematics ------------------ None Fabricated ------------ Nothing Repaired ---------- Nothing Alien Tech Used ----------------- None Achievements -------------- None Challenges ------------ None Polymind | -11 -10 -9 -8 -7 ---------- Run | Yrd Mat Mat Mat Fac Hosts 8 | . 1 1 4 2 Combat Hostiles 5 | . . . 4 1 Allies . | . . . . . Unique Host Classes 7 | . 1 1 3 2 Average Host Suspicion 43 | . 28 68 75 35 Unsuspicious Activity 2089 | . 7 71 150 1861 Returns to Shadow 1 | . . . . 1 Fuzzy Dispatches 4 | . . . . 4 Protomatter Created 154 | . . . 122 32 Used 155 | . 5 5 89 56 Decayed . | . . . . . Highest Spend 51 | . 5 5 30 51 Top 5 Hosts by Kills: G-47 Trooper (-8/Materials: 6) B-36 Bruiser (-8/Materials: 3) S-10 Pest (-8/Materials: 3) G-47 Trooper (-8/Materials: 1) Game ------ Seed ShadeXenonCapacitor Manual? 0 Play Time 00:13:00 Cumulative 37.1 hours Start 2025.10.21 @ 05:25:28 End 2025.10.21 @ 05:41:06 Sessions 1 Manual Loads 0 Difficulty Rogue Special Mode Winter2022/Polymind Game No. 147 Rogue 147 Adventurer 0 Explorer 0 Win Type - Total 0 Types 0/0/0/0/0/0/0/0/0/0 Lore% 12 Gallery% 32 Achievement% 31 Wizard Run 0 Options --------- Layout 1 ASCII 0 Keyboard 1 Movement Vi Keybinds 0 Fullscreen 1 Font 16/SmallcapsGlow Map View 55x38 Zoom Use 0% Tactical HUD 1 Map Filters NONE Filters NONE Steam 1 RUN: 2c76edbd-67ff-4a05-b147-72b9e572e6bb